{"text_format":"2","workbook":"xlsx","n_sheets":3,"sheets":["3_félév_újabb_oklevél","hálóterv","választható"],"not_rendered":{"charts":0,"images":0,"macros":0,"external_links":0,"defined_names":0,"comments":1,"pivot_tables":0},"unopened":[],"bounds":{"document_bytes":16777216,"sheet_cells":100000,"run_cost":"one","rows_first":2000,"rows_last":500,"rows_between":2000,"halvings":0,"cell_chars":16384,"cell_head_chars":4096},"cells_cut":0,"cells_raw":0,"read":"whole","date_system":"1900"}

{"sheet":"3_félév_újabb_oklevél","index":0,"n_rows":14,"n_cols":9,"rows_kept":14,"cut":false,"hidden":false,"merged":[[2,0,4,0],[2,2,2,6],[2,8,3,8],[3,1,4,1]]}
["Tanári szakképzettség birtokában újabb (más szakos) tanári oklevelet adó tanárképzés (90 kredit)"]
[]
["Félévek","Szakképzettségi elem","A tanári felkészítés kreditkeretei",{"$nulls":4},"Szab. vál.","Mindösszesen"]
[null,"Szakterületi ismeret","Pedagógia-pszichológia","Szakmódszertan","Tanítási gyakorlat","ÖSZGY","összesen 2-5"]
[null,null,"Elméleti és gyakorlati ismeretek ",null,"Szaktárgyi tanítási gyakorlat",null,null,null,"1+6+7+8"]
[null,1,2,3,4,5,6,7,9]
["1. félév",28,0,2,0,0,{"$f":"SUM(C7:F7)","v":2},0,{"$f":"B7+G7+H7","v":30}]
["2. félév",24,0,4,0,0,{"$f":"SUM(C8:F8)","v":4},2,30]
["3. félév",24,0,0,2,0,{"$f":"SUM(C9:F9)","v":2},2,28]
["Összesen",{"$f":"SUM(B7:B9)","v":76},0,6,2,0,8,4,88]
["Portfólió",0,0,2,0,0,2,0,2]
["Szabadon választható kreditek",4,0,0,0,0,0,0,0]
["Nincs rendelkezés róla",0,0,0,0,0,0,0,{"$f":"B13+G13+H13","v":0}]
["Mindösszesen",{"$f":"SUM(B10:B13)","v":80},{"$f":"SUM(C10:C13)","v":0},8,2,0,10,0,{"$f":"B14+G14+H14","v":90}]

{"sheet":"hálóterv","index":1,"n_rows":39,"n_cols":15,"rows_kept":39,"cut":false,"hidden":false,"merged":[[31,0,31,1],[0,0,0,1],[0,9,0,14],[1,9,1,10],[1,11,1,12],[1,13,1,14]]}
["Tanári diplomával 3 félév",{"$nulls":8},"Félévek"]
[{"$nulls":9},1,null,2,null,3]
["Kód","Tárgy(elem) elnevezése","Tí-\npus","Óra-\nszám","Kre-\ndit","Számon-\nkérés","Fél-\név","Tárgyfelelős","Előfeltétel","ó","kr","ó","kr","ó","kr"]
[null,"Matematika kémiatanároknak","ea+gy",4,4,"gy",1,null,null,4,4]
["KTN01G","A kémiai informatika alapjai (FKAT)","gy",2,2,"gy",1,"Peintler Gábor",null,2,2]
["KTN02E","Általános kémia (FKAT)","ea",3,4,"k",1,"Horváth Dezső",null,3,4]
["KTN02E","Általános kémiai laboratórium (FKAT)","gy",4,4,"gy",1,"Horváth Dezső",null,4,4]
[null,"Fizika osztatlan tanároknak","ea",2,3,"k",1,"Hopp Béla",null,2,3]
["KTN15E","A kémia kultúrtörténete (AKKT)","ea",2,3,"k",1,"Tóth Ildikó",null,2,3]
["KTN02G","Kémiai számítások I. (FKAT)","gy",2,2,"g",1,"Csapó Edit",null,2,2]
["KTN22G","Integrált természettudomány","gy",2,2,"gy",1,"Musza Katalin",null,2,2]
["KTN11G","Molekulaszerkezetek leírása és szemléltetése (FKAT)","gy",2,2,"gy",2,"Czakó Gábor","KTN02E",null,null,2,2]
["KTN12E","Kémiai technológia (AKKT)","ea",3,4,"k",2,"Sápi András","KTN02E",null,null,3,4]
["KTN04E","Szerves kémia alapjai (MAKT)","ea",4,6,"k",2,"Wölfling János","KTN02E",null,null,4,6]
["KTN07E"," A fizikai kémia alapjai (FKAT)","ea",2,3,"k",2,"Horváth Dezső","KTN02E",null,null,2,3]
["KTN10E","Hétköznapi anyagismeret (AKKT)","ea",2,3,"k",2,"Tóth Ildikó","KTN02E",null,null,2,3]
["KTN17E","Baleseti esettanulmányok (AKKT)","ea",2,3,"k",2,"Kukovecz  Ákos","KTN02E",null,null,2,3]
["KTN08E","Az analitikai kémia alapjai (MAKT)","ea",2,3,"k",2,"Enyedy Éva","KTN02E",null,null,2,3]
["KTN07G","Fizikai kémiai számítások (FKAT)","gy",2,2,"gy",2,"Endrődi Balázs","KTN02G",null,null,2,2]
["KTN05L","Szervetlen kémia laboratórium (MAKT)","gy",4,4,"gy",3,"Gyurcsik Béla","KTN02E",{"$nulls":4},4,4]
["KTN06G","Kémiai számítások II. (FKAT)","gy",2,2,"gy",3,"Musza Katalin","KTN02G",{"$nulls":4},2,2]
["KTN04L","Szerves kémiai laboratórium (MAKT)","gy",3,3,"gy",3,"Mastalír Ágnes","KTN04E",{"$nulls":4},3,3]
["KTN08L","Analitikai kémiai laboratórium (MAKT)","gy",4,4,"gy",3,"Enyedy Éva","KTN08E",{"$nulls":4},4,4]
["KTN14G","Tehetséggondozás kémiából (FKAT)","gy",2,2,"gy",3,"Peintler Gábor","KTN02G",{"$nulls":4},2,2]
["KTN13E","Környezeti kémia és környezetvédelem (AKKT)","ea",2,3,"k",3,"Tóth Ildikó","KTN12E",{"$nulls":4},2,3]
["KTN23G","Terepgyakorlat kémiatanároknak","gy",null,2,"gy",3,"Musza Katalin","KTNM1E",{"$nulls":5},2]
["KTN05E","Szervetlen kémia alapjai (MAKT)","ea",3,4,"k",3,"Gyurcsik Béla","KTN02E",{"$nulls":4},3,4]
[null,"Kötelezően választható (OT kurzusok közül)",null,2,2,null,3,{"$nulls":6},2,2]
[null,"Szabadon választható",null,4,4,null,"1_2",null,null,2,2,2,2]
[null,null,null,{"$f":"SUM(D4:D28)","v":62},{"$f":"SUM(E4:E28)","v":76}]
[]
["Szakmódszertani tárgyak ( 8 kr.) a tanári felkészítés elemei"]
["KTNM1E","Kémia tantárgypedagógia","ea",1,2,null,1,"Musza Katalin",null,1,2]
["KTNM2L","Kémiai kísérletek 7-8. osztályban","gy",2,2,null,1,"Musza Katalin","KTNM1E",2,2]
["KTNM4G","Kooperatív tanulás kémiaórán, kollaborációs tér","gy",2,2,null,2,"Musza Katalin","KTNM2L",null,null,2,2]
[null,"Portfólió","szem",2,2,null,3,{"$nulls":6},2,2]
[null,null,null,8,8]
[]
[null,null,null,73,88,{"$nulls":4},{"$f":"SUM(J4:J38)","v":26},{"$f":"SUM(K4:K38)","v":30},23,30,24,28]

{"sheet":"választható","index":2,"n_rows":18,"n_cols":15,"rows_kept":18,"cut":false,"hidden":false,"merged":[[14,9,14,10],[14,11,14,12],[14,13,14,14],[0,0,0,1],[0,9,0,14],[1,9,1,10],[1,11,1,12],[1,13,1,14],[13,0,13,1],[13,9,13,14]]}
["Kötelezően választható",{"$nulls":8},"Félévek"]
[{"$nulls":9},1,null,2,null,3]
["Kód","Tárgy(elem) elnevezése","Tí-\npus","Óra-\nszám","Kre-\ndit","Számon-\nkérés","Fél-\név","Tárgyfelelős","Előfeltétel","ó","kr","ó","kr","ó","kr"]
["KTNM3L","Kémiai kísérletek a középiskolában","gy",2,2,"gy",2,"Musza Katalin","KTNM2L",null,null,2,2]
["KTNM5G","Gondolkodtató és felfedeztető kémiatanítás","gy",2,2,"gy",3,"Musza Katalin","KTNM4G",{"$nulls":4},2,2]
["KTN801G","Környezeti fenntarthatóság az iskolában","ea",2,3,"k",3,"Musza Katalin","KTNM2L",{"$nulls":4},2,3]
{"$rows_empty":7}
["Szabadon választható",{"$nulls":8},"Félévek"]
[{"$nulls":9},1,null,2,null,3]
["Kód","Tárgy(elem) elnevezése","Tí-\npus","Óra-\nszám","Kre-\ndit","Számon-\nkérés","Fél-\név","Tárgyfelelős","Előfeltétel","ó","kr","ó","kr","ó","kr"]
["KTN09E","A kémia gazdasági vonatkozásai (FKAT)","ea",2,3,"k",1,"Janáky Csaba",null,2,3]
["KTN20E","Bevezetés az elektrokémiába (FKAT)","ea",2,3,"k",3,"Endrődi Balázs","KTN07E",{"$nulls":4},2,3]